[Event "FIDE World Rapid-ch Open 2018"]
[White "Dreev, Aleksey"]
[Black "Kryakvin, Dmitry"]
[Site "St. Petersburg"]
[Round "6.48"]
[Annotator "ChessBase"]
[Result "1-0"]
[Date "2018.12.27"]
[WhiteElo "2670"]
[BlackElo "2588"]
[PlyCount "77"]
[TimeControl "900+10"]

1. d4 {[%emt 0:0:0]} g6 {[%emt 0:0:0]} 2. Nf3 {[%emt 0:0:8]} Bg7 {[%emt 0:0:0]
} 3. g3 {[%emt 0:0:2]} c5 {[%emt 0:0:0]} 4. e3 {[%emt 0:0:0]} cxd4 {[%emt 0:0:49]} 5. exd4 {[%emt 0:0:0]} Nf6 {[%emt 0:0:7]} 6. Bg2 {[%emt 0:0:10]} d5 {[%emt 0:0:12]} 7. 0-0 {[%emt 0:0:5]} 0-0 {[%emt 0:0:0]} 8. Re1 {[%emt 0:0:35]} Nc6 {[%emt 0:0:14]} 9. c3 {[%emt 0:0:1]} Bf5 {[%emt 0:0:49]
} 10. Bf4 {[%emt 0:0:6]} Ne4 {[%emt 0:1:29]} 11. Nh4 {[%emt 0:0:0]} Be6 {[%emt 0:0:36]} 12. Nd2 {[%emt 0:0:21]} Nxd2 {[%emt 0:0:38]} 13. Qxd2 {[%emt 0:0:1]} Qd7 {[%emt 0:0:1]} 14. Bh6 {[%emt 0:1:6]} Bh3 {[%emt 0:0:42]
} 15. Bh1 {[%emt 0:0:35]} Rae8 {[%emt 0:0:19]} 16. Bxg7 {[%emt 0:1:26]
} Kxg7 {[%emt 0:0:1]} 17. Re3 {[%emt 0:0:1]} g5 {[%emt 0:0:0]} 18. Nf3 {[%emt 0:1:1]} f6 {[%emt 0:0:5]} 19. Ne1 {[%emt 0:0:15]} b6 {[%emt 0:1:32]
} 20. Rc1 {[%emt 0:1:40]} Be6 {[%emt 0:0:48]} 21. Nd3 {[%emt 0:0:0]} Bf7 {[%emt 0:0:15]} 22. Rce1 {[%emt 0:0:3]} e6 {[%emt 0:0:18]} 23. f4 {[%emt 0:0:39]} h6 {[%emt 0:0:12]} 24. Bg2 {[%emt 0:3:1]} Ne7 {[%emt 0:0:0]} 25. Bh3 {[%emt 0:0:18]} Nf5 {[%emt 0:0:25]} 26. R3e2 {[%emt 0:1:20]} Bh5 {[%emt 0:1:1]} 27. Rf2 {[%emt 0:0:44]} Bg6 {[%emt 0:0:30]} 28. Rff1 {[%emt 0:0:58]
} Nd6 {[%emt 0:0:40]} 29. Nf2 {[%emt 0:0:2]} Bf5 {[%emt 0:0:0]} 30. Bg2 {[%emt 0:0:4]} g4 {[%emt 0:0:41]} 31. h3 {[%emt 0:0:16]} gxh3 {[%emt 0:0:14]} 32. Bf3 {[%emt 0:0:2]} Bg6 {[%emt 0:0:46]} 33. Kh2 {[%emt 0:0:3]
} Nc4 {[%emt 0:0:34]} 34. Qc1 {[%emt 0:0:31]} e5 {[%emt 0:0:0]} 35. fxe5 {[%emt 0:0:36]} fxe5 {[%emt 0:0:14]} 36. Ng4 {[%emt 0:0:4]} Kg8 {[%emt 0:1:11]} 37. Qxh6 {[%emt 0:0:31]} Re6 {[%emt 0:0:27]} 38. Bxd5 {[%emt 0:0:11]
} Rxf1 {[%emt 0:0:12]} 39. Rxf1 {[%emt 0:0:20]} 1-0

[Event "FIDE World Rapid-ch Open 2018"]
[White "Najer, Evgeniy"]
[Black "Baron, Tal"]
[Site "St. Petersburg"]
[Round "6.49"]
[Annotator "ChessBase"]
[Result "1-0"]
[Date "2018.12.27"]
[WhiteElo "2670"]
[BlackElo "2532"]
[PlyCount "61"]
[TimeControl "900+10"]

1. e4 {[%emt 0:0:0]} c5 {[%emt 0:0:0]} 2. Nf3 {[%emt 0:0:20]} Nc6 {[%emt 0:0:0]
} 3. Bb5 {[%emt 0:0:1]} g6 {[%emt 0:0:0]} 4. 0-0 {[%emt 0:0:0]} Bg7 {[%emt 0:0:0]} 5. c3 {[%emt 0:0:51]} Nf6 {[%emt 0:0:3]} 6. Qa4 {[%emt 0:0:3]
} 0-0 {[%emt 0:0:6]} 7. Re1 {[%emt 0:0:20]} Qb6 {[%emt 0:0:0]} 8. Na3 {[%emt 0:0:25]} a6 {[%emt 0:0:26]} 9. Bf1 {[%emt 0:0:47]} Qa7 {[%emt 0:0:54]
} 10. Qd1 {[%emt 0:0:2]} Rd8 {[%emt 0:0:31]} 11. Nc2 {[%emt 0:0:0]} e5 {[%emt 0:1:39]} 12. d4 {[%emt 0:2:33]} exd4 {[%emt 0:1:15]} 13. e5 {[%emt 0:0:31]} Ng4 {[%emt 0:0:26]} 14. Bf4 {[%emt 0:0:52]} dxc3 {[%emt 0:1:37]
} 15. bxc3 {[%emt 0:1:22]} d5 {[%emt 0:1:51]} 16. exd6 {[%emt 0:0:2]
} Bxc3 {[%emt 0:0:33]} 17. h3 {[%emt 0:2:3]} Nf6 {[%emt 0:0:0]} 18. Re3 {[%emt 0:0:2]} Bxa1 {[%emt 0:0:26]} 19. Qxa1 {[%emt 0:0:2]} Nd4 {[%emt 0:0:10]} 20. Ncxd4 {[%emt 0:0:38]} cxd4 {[%emt 0:0:1]} 21. Nxd4 {[%emt 0:0:5]} Qc5 {[%emt 0:0:59]} 22. Nb3 {[%emt 0:4:18]} Qf5 {[%emt 0:0:0]} 23. Be5 {[%emt 0:0:29]} Ne8 {[%emt 0:1:44]} 24. Nc5 {[%emt 0:1:10]} f6 {[%emt 0:0:37]} 25. Bd3 {[%emt 0:0:30]} Qg5 {[%emt 0:1:29]} 26. f4 {[%emt 0:0:0]} Qh5 {[%emt 0:0:9]} 27. Bc4+ {[%emt 0:0:17]} Kg7 {[%emt 0:0:7]} 28. Bxf6+ {[%emt 0:0:54]} Nxf6 {[%emt 0:0:1]} 29. Re7+ {[%emt 0:0:3]} Kh6 {[%emt 0:0:2]
} 30. Qxf6 {[%emt 0:0:9]} Qxc5+ {[%emt 0:0:14]} 31. Kh2 {[%emt 0:0:1]
} 1-0

[Event "FIDE World Rapid-ch Open 2018"]
[White "Popov, Ivan"]
[Black "Pantsulaia, Levan"]
[Site "St. Petersburg"]
[Round "6.50"]
[Annotator "ChessBase"]
[Result "0-1"]
[Date "2018.12.27"]
[WhiteElo "2592"]
[BlackElo "2597"]
[PlyCount "86"]
[TimeControl "900+10"]

1. e4 {[%emt 0:0:34]} c6 {[%emt 0:0:0]} 2. d4 {[%emt 0:0:2]} d5 {[%emt 0:0:0]} 3. Nc3 {[%emt 0:0:2]} a6 {[%emt 0:0:22]} 4. Nf3 {[%emt 0:0:14]} Bg4 {[%emt 0:0:3]} 5. h3 {[%emt 0:0:11]} Bh5 {[%emt 0:0:35]} 6. exd5 {[%emt 0:0:0]} cxd5 {[%emt 0:0:6]} 7. g4 {[%emt 0:0:2]} Bg6 {[%emt 0:0:2]} 8. h4 {[%emt 0:0:1]} f6 {[%emt 0:2:20]} 9. h5 {[%emt 0:0:14]} Bf7 {[%emt 0:0:1]
} 10. g5 {[%emt 0:1:30]} Nc6 {[%emt 0:0:12]} 11. Bf4 {[%emt 0:0:22]} e6 {[%emt 0:1:13]
} 12. Qd2 {[%emt 0:1:49]} Rc8 {[%emt 0:0:17]} 13. 0-0-0 {[%emt 0:0:35]
} Bb4 {[%emt 0:0:9]} 14. a3 {[%emt 0:1:14]} Ba5 {[%emt 0:0:0]} 15. Qe3 {[%emt 0:0:3]} Nge7 {[%emt 0:4:56]} 16. Bh3 {[%emt 0:1:52]} Bxc3 {[%emt 0:0:2]} 17. Qxc3 {[%emt 0:0:4]} Na5 {[%emt 0:1:1]} 18. Qe1 {[%emt 0:3:36]
} Bxh5 {[%emt 0:0:23]} 19. Bxe6 {[%emt 0:0:35]} Bxf3 {[%emt 0:0:0]} 20. Bxc8 {[%emt 0:0:19]} Bxh1 {[%emt 0:0:58]} 21. gxf6 {[%emt 0:0:0]} gxf6 {[%emt 0:0:2]} 22. Bf5 {[%emt 0:1:0]} Bf3 {[%emt 0:1:53]} 23. Rd3 {[%emt 0:0:2]} Bh5 {[%emt 0:0:2]} 24. Qe6 {[%emt 0:0:22]} Bg6 {[%emt 0:0:54]
} 25. Qxf6 {[%emt 0:0:27]} Rf8 {[%emt 0:0:12]} 26. Bxg6+ {[%emt 0:0:1]
} hxg6 {[%emt 0:0:3]} 27. Qg5 {[%emt 0:0:14]} Qb6 {[%emt 0:0:0]} 28. Re3 {[%emt 0:0:23]} Qf6 {[%emt 0:0:14]} 29. Qxd5 {[%emt 0:0:3]} Qxf4 {[%emt 0:0:5]} 30. Qxa5 {[%emt 0:0:6]} Qxd4 {[%emt 0:1:20]} 31. Qc7 {[%emt 0:0:2]
} Qd7 {[%emt 0:0:4]} 32. Qb8+ {[%emt 0:0:21]} Kf7 {[%emt 0:0:0]} 33. Qe5 {[%emt 0:0:9]} Nf5 {[%emt 0:0:31]} 34. Rh3 {[%emt 0:0:1]} Ng7 {[%emt 0:0:1]} 35. Rc3 {[%emt 0:0:23]} Rc8 {[%emt 0:0:13]} 36. Rf3+ {[%emt 0:0:7]
} Kg8 {[%emt 0:0:4]} 37. Qf6 {[%emt 0:0:18]} Qe6 {[%emt 0:0:0]} 38. Qxe6+ {[%emt 0:0:7]} Nxe6 {[%emt 0:0:2]} 39. Rf6 {[%emt 0:0:1]} Nf8 {[%emt 0:0:1]} 40. Rb6 {[%emt 0:0:6]} Rc7 {[%emt 0:0:3]} 41. Kd2 {[%emt 0:0:2]
} Kf7 {[%emt 0:0:1]} 42. b4 {[%emt 0:0:4]} Nd7 {[%emt 0:0:0]} 43. Rd6 {[%emt 0:0:1]} Ne5 {[%emt 0:0:3]} 0-1

[Event "FIDE World Rapid-ch Open 2018"]
[White "Adly, Ahmed"]
[Black "Ghaem Maghami, Ehsan"]
[Site "St. Petersburg"]
[Round "6.51"]
[Annotator "ChessBase"]
[Result "1/2-1/2"]
[Date "2018.12.27"]
[WhiteElo "2626"]
[BlackElo "2537"]
[PlyCount "87"]
[TimeControl "900+10"]

1. d4 {[%emt 0:0:0]} Nf6 {[%emt 0:0:0]} 2. Nf3 {[%emt 0:0:0]} d5 {[%emt 0:0:0]
} 3. g3 {[%emt 0:0:2]} c6 {[%emt 0:0:7]} 4. Bg2 {[%emt 0:0:0]} Bf5 {[%emt 0:0:35]} 5. 0-0 {[%emt 0:0:7]} e6 {[%emt 0:0:8]} 6. c4 {[%emt 0:0:7]
} Nbd7 {[%emt 0:0:38]} 7. Nc3 {[%emt 0:0:4]} dxc4 {[%emt 0:0:0]} 8. Nh4 {[%emt 0:0:35]} Bg4 {[%emt 0:0:18]} 9. h3 {[%emt 0:0:2]} Bh5 {[%emt 0:0:4]
} 10. g4 {[%emt 0:0:14]} Nd5 {[%emt 0:0:28]} 11. gxh5 {[%emt 0:0:0]} Qxh4 {[%emt 0:0:12]} 12. e4 {[%emt 0:0:1]} Nf4 {[%emt 0:0:21]} 13. Bxf4 {[%emt 0:0:36]} Qxf4 {[%emt 0:0:3]} 14. e5 {[%emt 0:0:3]} Be7 {[%emt 0:3:32]
} 15. Re1 {[%emt 0:0:41]} 0-0 {[%emt 0:1:51]} 16. Re4 {[%emt 0:0:0]} Qh6 {[%emt 0:0:3]} 17. Qe2 {[%emt 0:0:7]} Nb6 {[%emt 0:0:28]} 18. Nd1 {[%emt 0:0:27]} c5 {[%emt 0:2:16]} 19. Ne3 {[%emt 0:0:49]} Kh8 {[%emt 0:0:0]} 20. Nxc4 {[%emt 0:1:49]} Nxc4 {[%emt 0:0:26]} 21. Qxc4 {[%emt 0:0:0]} cxd4 {[%emt 0:0:4]} 22. Qc7 {[%emt 0:0:50]} Bd8 {[%emt 0:0:17]} 23. Qxb7 {[%emt 0:0:41]} Bb6 {[%emt 0:0:2]} 24. a4 {[%emt 0:0:2]} Rab8 {[%emt 0:0:23]
} 25. Qe7 {[%emt 0:0:9]} Rfe8 {[%emt 0:1:57]} 26. Qh4 {[%emt 0:4:1]
} Bd8 {[%emt 0:0:51]} 27. Qg4 {[%emt 0:1:15]} Rxb2 {[%emt 0:0:0]} 28. Rxd4 {[%emt 0:0:33]} f5 {[%emt 0:0:39]} 29. exf6 {[%emt 0:2:12]} Bxf6 {[%emt 0:0:2]} 30. Rdd1 {[%emt 0:0:0]} Rxf2 {[%emt 0:0:8]} 31. Kxf2 {[%emt 0:0:18]} Bxa1 {[%emt 0:0:1]} 32. Kg1 {[%emt 0:0:8]} Bf6 {[%emt 0:0:0]} 33. Kh1 {[%emt 0:0:7]} Qe3 {[%emt 0:0:34]} 34. Qe4 {[%emt 0:0:3]} Qxe4 {[%emt 0:0:22]} 35. Bxe4 {[%emt 0:0:2]} Rd8 {[%emt 0:0:12]} 36. Rxd8+ {[%emt 0:0:12]} Bxd8 {[%emt 0:0:3]} 37. Kg2 {[%emt 0:0:2]} Kg8 {[%emt 0:0:0]} 38. Kf3 {[%emt 0:0:1]} h6 {[%emt 0:0:7]} 39. Bg6 {[%emt 0:0:10]} Kf8 {[%emt 0:0:1]} 40. Bc2 {[%emt 0:0:35]} Ke7 {[%emt 0:0:3]} 41. Bb3 {[%emt 0:0:1]
} Kf6 {[%emt 0:0:3]} 42. Kg4 {[%emt 0:0:2]} Ke5 {[%emt 0:0:0]} 43. Ba2 {[%emt 0:0:1]} Be7 {[%emt 0:0:12]} 44. Bb3 1/2-1/2

[Event "FIDE World Rapid-ch Open 2018"]
[White "Amin, Bassem"]
[Black "Belozerov, Andrei"]
[Site "St. Petersburg"]
[Round "6.52"]
[Annotator "ChessBase"]
[Result "1/2-1/2"]
[Date "2018.12.27"]
[WhiteElo "2710"]
[BlackElo "2528"]
[PlyCount "99"]
[TimeControl "900+10"]

1. Nf3 {[%emt 0:0:0]} d5 {[%emt 0:0:0]} 2. g3 {[%emt 0:0:0]} Bg4 {[%emt 0:0:0]
} 3. Bg2 {[%emt 0:0:0]} Nd7 {[%emt 0:0:0]} 4. 0-0 {[%emt 0:0:0]} Ngf6 {[%emt 0:0:3]} 5. d3 {[%emt 0:0:8]} c6 {[%emt 0:0:25]} 6. Nbd2 {[%emt 0:0:9]} e5 {[%emt 0:0:14]} 7. e4 {[%emt 0:0:5]} Bd6 {[%emt 0:0:0]} 8. h3 {[%emt 0:0:5]} Bh5 {[%emt 0:0:5]} 9. exd5 {[%emt 0:0:2]} cxd5 {[%emt 0:0:1]} 10. c4 {[%emt 0:0:1]} 0-0 {[%emt 0:0:10]} 11. cxd5 {[%emt 0:0:2]
} Nxd5 {[%emt 0:0:32]} 12. Qb3 {[%emt 0:0:2]} N5f6 {[%emt 0:0:0]} 13. Nc4 {[%emt 0:1:58]} Nc5 {[%emt 0:0:38]} 14. Qa3 {[%emt 0:0:7]} Re8 {[%emt 0:1:30]} 15. Nxd6 {[%emt 0:0:38]} Qxd6 {[%emt 0:0:2]} 16. Be3 {[%emt 0:2:3]
} Rac8 {[%emt 0:2:7]} 17. Rac1 {[%emt 0:0:8]} b6 {[%emt 0:0:0]} 18. d4 {[%emt 0:0:19]} exd4 {[%emt 0:1:9]} 19. Nxd4 {[%emt 0:0:2]} Nd5 {[%emt 0:1:7]} 20. Nb5 {[%emt 0:2:8]} Qd7 {[%emt 0:0:12]} 21. Bxc5 {[%emt 0:0:39]
} Qxb5 {[%emt 0:0:59]} 22. Bxd5 {[%emt 0:0:13]} bxc5 {[%emt 0:0:0]} 23. Qxa7 {[%emt 0:0:25]} Red8 {[%emt 0:0:44]} 24. Bb3 {[%emt 0:2:36]
} c4 {[%emt 0:0:30]} 25. Qa4 {[%emt 0:0:12]} Qf5 {[%emt 0:0:56]} 26. Rxc4 {[%emt 0:0:29]
} Rxc4 {[%emt 0:0:53]} 27. Qxc4 {[%emt 0:0:7]} Qxh3 {[%emt 0:0:0]} 28. Qh4 {[%emt 0:2:23]} Qxh4 {[%emt 0:0:4]} 29. gxh4 {[%emt 0:0:2]
} Rd2 {[%emt 0:0:1]} 30. Rc1 {[%emt 0:0:6]} Kf8 {[%emt 0:0:30]} 31. Rc2 {[%emt 0:1:22]
} Rd4 {[%emt 0:0:1]} 32. Rc4 {[%emt 0:0:5]} Rd2 {[%emt 0:0:0]} 33. Rc8+ {[%emt 0:0:7]} Ke7 {[%emt 0:0:2]} 34. Rc5 {[%emt 0:0:2]} g6 {[%emt 0:1:31]} 35. Rc7+ {[%emt 0:0:54]} Kd6 {[%emt 0:0:1]} 36. Rxf7 {[%emt 0:0:8]
} Rxb2 {[%emt 0:0:3]} 37. Rxh7 {[%emt 0:0:5]} Ke5 {[%emt 0:0:0]} 38. Rc7 {[%emt 0:0:56]} Bf3 {[%emt 0:0:20]} 39. Re7+ {[%emt 0:0:24]} Kf4 {[%emt 0:0:17]} 40. Rf7+ {[%emt 0:0:14]} Ke4 {[%emt 0:0:1]} 41. Re7+ {[%emt 0:1:22]
} Kf4 {[%emt 0:0:6]} 42. Re1 {[%emt 0:0:5]} Kg4 {[%emt 0:0:0]} 43. Rc1 {[%emt 0:0:24]} Kxh4 {[%emt 0:0:20]} 44. Be6 {[%emt 0:0:6]} g5 {[%emt 0:0:28]} 45. a4 {[%emt 0:0:8]} g4 {[%emt 0:0:14]} 46. a5 {[%emt 0:0:0]} Rb5 {[%emt 0:0:53]} 47. a6 {[%emt 0:0:5]} Ra5 {[%emt 0:0:1]} 48. Bc8 {[%emt 0:0:9]} Be2 {[%emt 0:0:8]} 49. Kg2 {[%emt 0:0:59]} Bxa6 {[%emt 0:0:4]
} 50. Bxa6 {[%emt 0:0:10]} 1/2-1/2

[Event "FIDE World Rapid-ch Open 2018"]
[White "Petrov, Nikita"]
[Black "Vallejo Pons, Francisco"]
[Site "St. Petersburg"]
[Round "6.53"]
[Annotator "ChessBase"]
[Result "1-0"]
[Date "2018.12.27"]
[WhiteElo "2593"]
[BlackElo "2695"]
[PlyCount "61"]
[TimeControl "900+10"]

1. e4 {[%emt 0:0:0]} c5 {[%emt 0:0:0]} 2. Nc3 {[%emt 0:0:0]} e6 {[%emt 0:0:0]} 3. Nf3 {[%emt 0:0:12]} a6 {[%emt 0:0:0]} 4. d4 {[%emt 0:0:3]} cxd4 {[%emt 0:0:1]} 5. Nxd4 {[%emt 0:0:2]} Qc7 {[%emt 0:0:9]} 6. Qf3 {[%emt 0:0:0]} b5 {[%emt 0:1:2]} 7. Qg3 {[%emt 0:0:32]} d6 {[%emt 0:0:8]} 8. Bf4 {[%emt 0:8:10]} Nf6 {[%emt 0:5:11]} 9. Bxb5+ {[%emt 0:3:25]} axb5 {[%emt 0:0:0]} 10. Ndxb5 {[%emt 0:0:2]} Qb6 {[%emt 0:2:46]} 11. Bxd6 {[%emt 0:0:0]} Nxe4 {[%emt 0:1:4]} 12. Nxe4 {[%emt 0:0:3]} Qxb5 {[%emt 0:0:11]} 13. Bxf8 {[%emt 0:0:26]} Kxf8 {[%emt 0:0:15]} 14. Qd6+ {[%emt 0:0:5]} Ke8 {[%emt 0:0:1]
} 15. 0-0-0 {[%emt 0:1:12]} Nd7 {[%emt 0:0:9]} 16. Qc7 {[%emt 0:0:20]
} Qa4 {[%emt 0:2:32]} 17. Nd6+ {[%emt 0:0:12]} Ke7 {[%emt 0:0:0]} 18. Nf5+ {[%emt 0:0:13]} Kf6 {[%emt 0:1:19]} 19. Nd6 {[%emt 0:0:1]} Kg6 {[%emt 0:1:24]} 20. Rd3 {[%emt 0:0:1]} Qf4+ {[%emt 0:0:22]} 21. Kb1 {[%emt 0:0:8]
} h5 {[%emt 0:0:14]} 22. Rg3+ {[%emt 0:0:5]} Kh6 {[%emt 0:0:0]} 23. Rf3 {[%emt 0:0:5]} Qa4 {[%emt 0:0:34]} 24. Nxf7+ {[%emt 0:0:14]} Kh7 {[%emt 0:0:3]} 25. Ra3 {[%emt 0:0:2]} Qxa3 {[%emt 0:0:27]} 26. bxa3 {[%emt 0:0:2]
} Rf8 {[%emt 0:0:4]} 27. Ng5+ {[%emt 0:0:15]} Kh6 {[%emt 0:0:0]} 28. f4 {[%emt 0:0:33]} Nf6 {[%emt 0:0:7]} 29. Rd1 {[%emt 0:0:14]} Nd5 {[%emt 0:0:9]} 30. Rxd5 {[%emt 0:0:9]} exd5 {[%emt 0:0:17]} 31. Qc6+ {[%emt 0:0:1]
} 1-0

[Event "FIDE World Rapid-ch Open 2018"]
[White "Kovalev, Vladislav"]
[Black "Kevlishvili, Robby"]
[Site "St. Petersburg"]
[Round "6.54"]
[Annotator "ChessBase"]
[Result "1-0"]
[Date "2018.12.27"]
[WhiteElo "2683"]
[BlackElo "2451"]
[PlyCount "59"]
[TimeControl "900+10"]

1. e4 {[%emt 0:0:0]} c5 {[%emt 0:0:34]} 2. Be2 {[%emt 0:0:0]} Nc6 {[%emt 0:0:4]
} 3. d3 {[%emt 0:0:0]} g6 {[%emt 0:0:6]} 4. f4 {[%emt 0:0:0]} Bg7 {[%emt 0:0:3]} 5. Nf3 {[%emt 0:0:0]} d5 {[%emt 0:0:13]} 6. c3 {[%emt 0:0:24]
} e6 {[%emt 0:0:51]} 7. 0-0 {[%emt 0:0:24]} Nge7 {[%emt 0:0:0]} 8. Na3 {[%emt 0:0:16]} 0-0 {[%emt 0:0:11]} 9. Nc2 {[%emt 0:0:3]} b6 {[%emt 0:0:32]
} 10. Be3 {[%emt 0:1:27]} d4 {[%emt 0:4:57]} 11. cxd4 {[%emt 0:0:0]} cxd4 {[%emt 0:0:2]} 12. Bf2 {[%emt 0:0:14]} Bb7 {[%emt 0:0:3]} 13. Qd2 {[%emt 0:0:5]} Qd7 {[%emt 0:0:14]} 14. b4 {[%emt 0:1:20]} a6 {[%emt 0:0:0]} 15. a4 {[%emt 0:0:56]} Rfd8 {[%emt 0:0:48]} 16. Na3 {[%emt 0:2:16]} a5 {[%emt 0:0:27]} 17. Nc4 {[%emt 0:0:30]} Nc8 {[%emt 0:0:1]} 18. b5 {[%emt 0:0:12]
} Nb4 {[%emt 0:0:5]} 19. Nce5 {[%emt 0:1:16]} Qe7 {[%emt 0:0:0]} 20. Nxd4 {[%emt 0:0:58]} f6 {[%emt 0:1:15]} 21. Nec6 {[%emt 0:0:8]} Bxc6 {[%emt 0:0:14]} 22. Nxc6 {[%emt 0:0:2]} Nxc6 {[%emt 0:0:6]} 23. bxc6 {[%emt 0:0:1]} Na7 {[%emt 0:0:31]} 24. Bxb6 {[%emt 0:1:7]} Rdc8 {[%emt 0:0:0]} 25. c7 {[%emt 0:1:5]} Nc6 {[%emt 0:0:29]} 26. Rfc1 {[%emt 0:1:24]} Qd7 {[%emt 0:0:3]} 27. d4 {[%emt 0:0:20]} f5 {[%emt 0:0:23]} 28. Bb5 {[%emt 0:1:26]
} Bxd4+ {[%emt 0:0:52]} 29. Kh1 {[%emt 0:0:6]} Qg7 {[%emt 0:0:0]} 30. Bxc6 {[%emt 0:0:7]} 1-0

[Event "FIDE World Rapid-ch Open 2018"]
[White "Gutenev, Alexander"]
[Black "Iljiushenok, Ilia"]
[Site "St. Petersburg"]
[Round "6.56"]
[Annotator "ChessBase"]
[Result "1-0"]
[Date "2018.12.27"]
[WhiteElo "2456"]
[BlackElo "2533"]
[PlyCount "115"]
[TimeControl "900+10"]

1. e4 {[%emt 0:0:0]} c5 {[%emt 0:0:0]} 2. Nf3 {[%emt 0:0:0]} e6 {[%emt 0:0:0]} 3. d4 {[%emt 0:0:0]} cxd4 {[%emt 0:0:0]} 4. Nxd4 {[%emt 0:0:0]} Nc6 {[%emt 0:0:0]} 5. Nc3 {[%emt 0:0:0]} Qc7 {[%emt 0:0:0]} 6. Qd3 {[%emt 0:0:45]
} Nxd4 {[%emt 0:0:53]} 7. Qxd4 {[%emt 0:0:3]} a6 {[%emt 0:0:0]} 8. Be3 {[%emt 0:3:22]} Ne7 {[%emt 0:2:29]} 9. Be2 {[%emt 0:0:21]} Nc6 {[%emt 0:0:7]
} 10. Qb6 {[%emt 0:0:38]} Qb8 {[%emt 0:1:13]} 11. 0-0 {[%emt 0:0:0]} Be7 {[%emt 0:0:11]} 12. f4 {[%emt 0:0:14]} d6 {[%emt 0:0:36]} 13. a4 {[%emt 0:1:14]} 0-0 {[%emt 0:0:9]} 14. Rad1 {[%emt 0:0:10]} Re8 {[%emt 0:0:0]} 15. Bf3 {[%emt 0:1:58]} Bd8 {[%emt 0:0:11]} 16. Qb3 {[%emt 0:0:3]} Qc7 {[%emt 0:0:1]} 17. Bf2 {[%emt 0:1:0]} Rb8 {[%emt 0:0:18]} 18. Rd3 {[%emt 0:0:22]
} b6 {[%emt 0:1:8]} 19. Rfd1 {[%emt 0:0:15]} Na5 {[%emt 0:0:0]} 20. Qa2 {[%emt 0:0:56]} Be7 {[%emt 0:0:4]} 21. h3 {[%emt 0:3:6]} Bf8 {[%emt 0:0:0]} 22. Bg3 {[%emt 0:0:16]} Bb7 {[%emt 0:2:10]} 23. f5 {[%emt 0:0:0]} Nc4 {[%emt 0:0:9]} 24. fxe6 {[%emt 0:0:21]} fxe6 {[%emt 0:0:1]} 25. Bg4 {[%emt 0:0:42]} Kh8 {[%emt 0:1:3]} 26. Kh2 {[%emt 0:0:1]} Qc5 {[%emt 0:1:3]
} 27. Re1 {[%emt 0:0:27]} b5 {[%emt 0:3:19]} 28. axb5 {[%emt 0:0:0]} axb5 {[%emt 0:0:1]} 29. Qb3 {[%emt 0:0:10]} Bc6 {[%emt 0:0:16]} 30. Ne2 {[%emt 0:0:1]} Ne5 {[%emt 0:0:6]} 31. Rc3 {[%emt 0:0:1]} Nxg4+ {[%emt 0:0:2]
} 32. hxg4 {[%emt 0:0:1]} Qb6 {[%emt 0:0:3]} 33. Nf4 {[%emt 0:0:16]
} Bd7 {[%emt 0:0:15]} 34. g5 {[%emt 0:0:18]} g6 {[%emt 0:0:20]
} 35. Rd3 {[%emt 0:0:9]} Qc5 {[%emt 0:0:28]} 36. e5 {[%emt 0:0:9]} d5 {[%emt 0:0:1]
} 37. Rf3 {[%emt 0:0:9]} Bg7 {[%emt 0:0:2]} 38. Nd3 {[%emt 0:0:0]} Qe7 {[%emt 0:0:8]} 39. Rf6 {[%emt 0:0:6]} Rec8 {[%emt 0:0:24]} 40. Ref1 {[%emt 0:0:2]} Be8 {[%emt 0:0:8]} 41. Nf4 {[%emt 0:0:5]} Rc6 {[%emt 0:0:3]
} 42. Ne2 {[%emt 0:0:10]} Rc4 {[%emt 0:0:13]} 43. c3 {[%emt 0:0:0]} Rb6 {[%emt 0:0:21]} 44. Nd4 {[%emt 0:0:1]} Bxf6 {[%emt 0:0:6]} 45. exf6 {[%emt 0:0:6]} Qf7 46. Nf3 {[%emt 0:0:9]} Re4 {[%emt 0:0:21]} 47. Ne5 {[%emt 0:0:3]} Rxe5 48. Bxe5 {[%emt 0:0:1]} h6 {[%emt 0:0:17]} 49. Qa3 {[%emt 0:0:20]
} Kh7 {[%emt 0:0:15]} 50. Qe7 {[%emt 0:0:42]} Rb7 {[%emt 0:0:0]} 51. Qc5 {[%emt 0:0:2]} hxg5 {[%emt 0:0:19]} 52. Ra1 {[%emt 0:0:24]} g4 {[%emt 0:0:7]} 53. Ra8 {[%emt 0:0:21]} g5 {[%emt 0:0:2]} 54. Qc8 {[%emt 0:0:0]} g3+ {[%emt 0:0:23]} 55. Kxg3 {[%emt 0:0:8]} Qh5 {[%emt 0:0:14]} 56. Qxb7+ {[%emt 0:0:8]} Bf7 {[%emt 0:0:0]} 57. Kf2 {[%emt 0:0:11]} Qh4+ {[%emt 0:0:2]
} 58. Bg3 {[%emt 0:0:1]} 1-0

[Event "FIDE World Rapid-ch Open 2018"]
[White "Smirin, Ilia"]
[Black "Yakubboev, Nodirbek"]
[Site "St. Petersburg"]
[Round "6.57"]
[Annotator "ChessBase"]
[Result "0-1"]
[Date "2018.12.27"]
[WhiteElo "2609"]
[BlackElo "2556"]
[PlyCount "96"]
[TimeControl "900+10"]

1. Nf3 {[%emt 0:0:0]} d5 {[%emt 0:0:9]} 2. g3 {[%emt 0:0:0]} Nc6 {[%emt 0:0:21]
} 3. d4 {[%emt 0:0:13]} Bg4 {[%emt 0:0:37]} 4. Bg2 {[%emt 0:0:0]} e6 {[%emt 0:1:2]} 5. 0-0 {[%emt 0:0:27]} Bd6 {[%emt 0:1:11]} 6. c4 {[%emt 0:0:28]
} Nf6 {[%emt 0:1:39]} 7. Nc3 {[%emt 0:0:40]} 0-0 {[%emt 0:0:0]} 8. cxd5 {[%emt 0:0:45]} Nxd5 {[%emt 0:1:30]} 9. h3 {[%emt 0:2:0]} Bh5 {[%emt 0:0:44]} 10. e4 {[%emt 0:0:3]} Nxc3 {[%emt 0:2:9]} 11. bxc3 {[%emt 0:0:1]
} Rb8 {[%emt 0:2:14]} 12. Rb1 {[%emt 0:1:41]} f6 {[%emt 0:0:0]} 13. Be3 {[%emt 0:1:9]} b6 {[%emt 0:0:26]} 14. Qc2 {[%emt 0:1:45]} e5 {[%emt 0:0:34]
} 15. Nh4 {[%emt 0:0:27]} Na5 {[%emt 0:0:44]} 16. Nf5 {[%emt 0:0:0]} Nc4 {[%emt 0:0:12]} 17. Bc1 {[%emt 0:0:2]} b5 {[%emt 0:0:45]} 18. a4 {[%emt 0:0:52]} a6 {[%emt 0:0:14]} 19. axb5 {[%emt 0:0:3]} axb5 {[%emt 0:0:1]
} 20. f4 {[%emt 0:0:19]} Bg6 {[%emt 0:1:25]} 21. Nh4 {[%emt 0:0:0]} Bf7 {[%emt 0:0:10]} 22. dxe5 {[%emt 0:0:11]} fxe5 {[%emt 0:0:3]} 23. f5 {[%emt 0:0:1]} Bc5+ {[%emt 0:0:12]} 24. Kh2 {[%emt 0:0:2]} Ne3 {[%emt 0:0:9]
} 25. Bxe3 {[%emt 0:0:3]} Bxe3 {[%emt 0:0:1]} 26. Nf3 {[%emt 0:0:42]
} Qe7 {[%emt 0:0:25]} 27. Qe2 {[%emt 0:0:31]} Qc5 {[%emt 0:0:0]} 28. Nxe5 {[%emt 0:0:3]} Qxe5 {[%emt 0:0:3]} 29. Qxe3 {[%emt 0:0:2]} c5 {[%emt 0:0:1]} 30. Rfd1 {[%emt 0:0:27]} Rfe8 {[%emt 0:0:19]} 31. Qd2 {[%emt 0:0:59]
} Rb6 {[%emt 0:0:19]} 32. Qd7 {[%emt 0:0:38]} b4 {[%emt 0:0:0]} 33. cxb4 {[%emt 0:0:27]} cxb4 {[%emt 0:0:2]} 34. Qa7 {[%emt 0:0:21]} Qb8 {[%emt 0:0:21]} 35. Qxb8 {[%emt 0:1:8]} Rbxb8 {[%emt 0:0:1]} 36. Re1 {[%emt 0:0:31]
} Re5 {[%emt 0:0:3]} 37. g4 {[%emt 0:0:5]} g5 {[%emt 0:0:1]
} 38. Kg3 {[%emt 0:0:21]} b3 {[%emt 0:0:7]} 39. Kf2 {[%emt 0:0:14]} b2 {[%emt 0:0:12]
} 40. Ke3 {[%emt 0:0:41]} Ba2 {[%emt 0:0:1]} 41. Kd4 {[%emt 0:0:0]} Bxb1 {[%emt 0:0:25]} 42. Rxb1 {[%emt 0:0:1]} Ra5 {[%emt 0:0:0]} 43. e5 {[%emt 0:0:17]} Ra1 {[%emt 0:0:9]} 44. Be4 {[%emt 0:0:2]} Rb4+ {[%emt 0:0:2]
} 45. Kd5 {[%emt 0:0:16]} Ra5+ {[%emt 0:0:24]} 46. Kd6 {[%emt 0:0:4]
} Rxe4 {[%emt 0:0:11]} 47. e6 {[%emt 0:0:4]} Re2 {[%emt 0:0:0]} 48. Ke7 {[%emt 0:0:11]} Ra1 {[%emt 0:0:29]} 0-1

[Event "FIDE World Rapid-ch Open 2018"]
[White "Usmanov, Vasily"]
[Black "Demidov, Mikhail"]
[Site "St. Petersburg"]
[Round "6.58"]
[Annotator "ChessBase"]
[Result "0-1"]
[Date "2018.12.27"]
[WhiteElo "2450"]
[BlackElo "2520"]
[PlyCount "78"]
[TimeControl "900+10"]

1. Nf3 {[%emt 0:0:0]} g6 {[%emt 0:0:3]} 2. d4 {[%emt 0:0:0]} Bg7 {[%emt 0:0:1]
} 3. c4 {[%emt 0:0:10]} e6 {[%emt 0:0:1]} 4. g3 {[%emt 0:0:0]} b6 {[%emt 0:0:14]} 5. Bg2 Bb7 6. 0-0 {[%emt 0:0:6]} Ne7 {[%emt 0:0:12]
} 7. Nc3 {[%emt 0:0:2]} d6 {[%emt 0:0:2]} 8. Qc2 {[%emt 0:0:21]} 0-0 {[%emt 0:0:49]
} 9. Rd1 {[%emt 0:0:2]} Nd7 {[%emt 0:0:20]} 10. b3 {[%emt 0:0:0]} h6 {[%emt 0:0:21]} 11. Bb2 {[%emt 0:0:13]} a6 {[%emt 0:0:39]} 12. Rac1 {[%emt 0:0:3]} Qb8 {[%emt 0:1:41]} 13. e3 {[%emt 0:1:26]} f5 {[%emt 0:0:0]} 14. Qe2 {[%emt 0:0:50]} Nf6 {[%emt 0:1:8]} 15. Nd2 {[%emt 0:2:9]} Bxg2 {[%emt 0:1:8]} 16. Kxg2 {[%emt 0:0:1]} g5 {[%emt 0:2:9]} 17. e4 {[%emt 0:0:2]
} Qb7 {[%emt 0:0:9]} 18. d5 {[%emt 0:1:35]} Rae8 {[%emt 0:0:0]} 19. dxe6 {[%emt 0:2:40]} fxe4 {[%emt 0:0:58]} 20. Kg1 {[%emt 0:1:28]} Nf5 21. Nd5 Rxe6 22. Bxf6 Bxf6 23. Nxe4 Bg7 24. Qg4 Re5 25. Re1 c6 26. Nb4 Nd4 27. Nd3 Re6 28. f4 Qe7 29. Nef2 Ne2+ 30. Kf1 Re8 31. Rcd1 gxf4 32. gxf4 Kh8 33. f5 Re3 34. Kg2 Bc3 35. Rf1 Rg8 36. h3 Rxg4+ 37. Nxg4 Qe4+ 38. Kh2 Rxd3 39. f6 Be5+ {Rh1} 0-1